Cogmind - Beta 11.1 @@@ ROGUE MODE // 2022.08.01 @ 21:27:25 Player: Azken Zutik Result: Self-destructed Performance ------------- Evolutions (2) 1000 Regions Visited (6) 1200 Robots Destroyed (0) 0 Value Destroyed (0) 0 Prototype IDs (1) 20 Alien Tech Used (0) 0 Bonus (470) 470 TOTAL SCORE: 2690 Bonus ------- Pacifist 270 Entered Garrisons 200 Cogmind --------- Core Integrity 187/550 Matter 285/300 Energy 98/100 System Corruption 0% Temperature Cool (0) Movement Core (50) Location -8/Garrison Parts ------- > --- POWER (1) -------- (None) > --- PROPULSION (4) --- (None) > --- UTILITY (4) ------ Advanced Visual Processing Unit > --- WEAPON (2) ------- (None) > --- INVENTORY (5) ---- Light Ion Engine Mini Grenade Launcher Datajack Peak State ------------ > --- POWER ------------ (None) > --- PROPULSION ------- Light Treads Light Treads Improved Aluminum Leg Combat Airjet > --- UTILITY ---------- Advanced Visual Processing Unit > --- WEAPON ----------- (None) > --- INVENTORY -------- Light Ion Engine Improved VTOL Module Improved VTOL Module Mini Grenade Launcher Datajack [Rating: 13] Favorites ----------- Power Ion Engine Engine Ion Engine Propulsion Improved Aluminum Leg Treads Light Treads Leg Improved Aluminum Leg Hover Unit Combat Airjet Flight Unit Improved VTOL Module Utility Advanced Visual Processing Unit Storage Small Storage Unit Processor Advanced Visual Processing Unit Weapon Assault Rifle Ballistic Gun Assault Rifle Build | -11 -10 -10 -10 -9 -8 -8 ------- Run | Scr Mat Min Exi Min Mat Gar Slots Evolved 4 | . . . . . 4 . Power . | . . . . . . . Propulsion 2 | . . . . . 2 . Utility 2 | . . . . . 2 . Weapon . | . . . . . . . Parts Attached 8 | . 2 . 1 1 3 1 Power . | . . . . . . . Engine . | . . . . . . . Core . | . . . . . . . Reactor . | . . . . . . . Propulsion 7 | . 2 . 1 1 2 1 Treads 2 | . . . 1 . 1 . Leg 3 | . 2 . . . 1 . Wheel . | . . . . . . . Hover 1 | . . . . 1 . . Flight 1 | . . . . . . 1 Utility 1 | . . . . . 1 . Device . | . . . . . . . Storage . | . . . . . . . Processor 1 | . . . . . 1 . Hackware . | . . . . . . . Protection . | . . . . . . . Artifact . | . . . . . . . Weapon . | . . . . . . . Energy Gun . | . . . . . . . Energy Cannon . | . . . . . . . Ballistic Gun . | . . . . . . . Ballistic Cannon . | . . . . . . . Launcher . | . . . . . . . Special Weapon . | . . . . . . . Impact Weapon . | . . . . . . . Slashing Weapon . | . . . . . . . Piercing Weapon . | . . . . . . . Special Melee Weapon . | . . . . . . . Unidentified Prototypes 1 | . . . . . . 1 Parts Lost 5 | . . 1 . 1 3 . Power . | . . . . . . . Propulsion 5 | . . 1 . 1 3 . Utility . | . . . . . . . Weapon . | . . . . . . . Highest Loss Streak 2 | . . 1 . 1 2 . To Critical Strikes 1 | . . . . . 1 . Average Slot Usage (%) 28 | . 28 25 28 26 38 9 Treads 8 | . . . 14 14 13 . Leg 14 | . 28 25 14 10 7 . Hover 2 | . . . . 1 9 . Processor 3 | . . . . . 8 9 Naked Turns . | . . . . . . . Heaviest Build . | . . . . . . . Greatest Support 3 | 3 3 3 3 3 3 3 Greatest Overweight (x) . | . . . . . . . Average Overweight (x) . | . . . . . . . Largest Inventory Capacity 8 | 8 5 5 5 5 5 5 Average Capacity 5 | 7 5 5 5 5 5 5 Most Carried 5 | 5 5 5 4 5 5 5 Average Carried 4 | 3 4 4 4 4 4 3 Final Capacity 5 | 5 5 5 5 5 5 5 Final Carried 5 | 4 5 5 4 5 5 3 Class Distribution -------------------- 100% | Mutant Dominant Class ---------------- Mutant | -10/Materials Mutant | -10/Mines Mutant | -10/Exiles Mutant | -9/Mines Mutant | -8/Materials Mutant | -8/Garrison Resources | -11 -10 -10 -10 -9 -8 -8 ----------- Run | Scr Mat Min Exi Min Mat Gar Matter Collected 240 | 200 . 20 . 20 . . Remotely . | . . . . . . . Salvage Created . | . . . . . . . Parts . | . . . . . . . Haulers Intercepted . | . . . . . . . Recyclers Shooed . | . . . . . . . Parts Field Recycled . | . . . . . . . Retrieved Matter . | . . . . . . . Parts Self-Destructed . | . . . . . . . Prevented . | . . . . . . . Kills | -11 -10 -10 -10 -9 -8 -8 ------- Run | Scr Mat Min Exi Min Mat Gar Combat Hostiles Destroyed . | . . . . . . . Classes Destroyed . | . . . . . . . Best Kill Streak . | . . . . . . . Combat Bots Only . | . . . . . . . Max Kills in Single Turn . | . . . . . . . Gunslinging . | . . . . . . . Exploded . | . . . . . . . Melee . | . . . . . . . Uniques/NPCs Destroyed . | . . . . . . . Combat | -11 -10 -10 -10 -9 -8 -8 -------- Run | Scr Mat Min Exi Min Mat Gar Damage Taken 1170 | . 32 203 . 183 612 140 Core 471 | . . 81 . 27 223 140 Absorbed by Shields . | . . . . . . . Core Remaining (%) 78 | 100 . . . 56 . . Volleys Fired . | . . . . . . . Largest . | . . . . . . . Hottest . | . . . . . . . Shots Fired . | . . . . . . . Gun . | . . . . . . . Cannon . | . . . . . . . Launcher . | . . . . . . . Special . | . . . . . . . Kinetic . | . . . . . . . Thermal . | . . . . . . . Explosive . | . . . . . . . Electromagnetic . | . . . . . . . Robot Hit Streak . | . . . . . . . Robot Miss Streak . | . . . . . . . Penetration Max . | . . . . . . . Secondary Targets . | . . . . . . . Shots Hit Robots . | . . . . . . . Core Hits 4 | . . 3 . . 1 . Critical Kills . | . . . . . . . Critical Parts Destroyed . | . . . . . . . Critical Strikes . | . . . . . . . Melee Attacks . | . . . . . . . Impact . | . . . . . . . Slashing . | . . . . . . . Piercing . | . . . . . . . Sneak Attacks . | . . . . . . . Combat Hostiles . | . . . . . . . Follow-up Attacks . | . . . . . . . Damage Inflicted 78 | . . 57 . . 21 . Guns . | . . . . . . . Cannons . | . . . . . . . Explosions . | . . . . . . . Melee . | . . . . . . . Ramming 78 | . . 57 . . 21 . Kinetic . | . . . . . . . Thermal . | . . . . . . . Explosive . | . . . . . . . Electromagnetic . | . . . . . . . Impact . | . . . . . . . Slashing . | . . . . . . . Piercing . | . . . . . . . Highest Corruption . | . . . . . . . Average Corruption . | . . . . . . . Corruption Purged . | . . . . . . . Corruption Blocked . | . . . . . . . Overload Shots . | . . . . . . . Overflow Damage . | . . . . . . . Projectiles . | . . . . . . . Explosions . | . . . . . . . Melee . | . . . . . . . Knockbacks 2 | . . 2 . . . . Impact 2 | . . 2 . . . . Kinetic . | . . . . . . . Secondary . | . . . . . . . Self-Inflicted Damage 34 | . . 25 . . 9 . Shots . | . . . . . . . Rammed 19 | . . 16 . . 3 . Targets Rammed 19 | . . 16 . . 3 . Kicked . | . . . . . . . Crushed . | . . . . . . . Highest Temperature . | . . . . . . . Average Temperature . | . . . . . . . Received Heat Transfer 261 | . . 90 . . 153 18 Siege Activations . | . . . . . . . Robots Corrupted . | . . . . . . . Combat Hostiles . | . . . . . . . Parts Fried . | . . . . . . . Impact Corruptions . | . . . . . . . Robots Melted . | . . . . . . . Combat Hostiles . | . . . . . . . Parts Melted . | . . . . . . . Heat Transferred . | . . . . . . . Parts Sabotaged . | . . . . . . . Parts Stolen . | . . . . . . . Parts Stripped . | . . . . . . . Power Chain Reactions . | . . . . . . . Missiles Intercepted . | . . . . . . . Alert | -11 -10 -10 -10 -9 -8 -8 ------- Run | Scr Mat Min Exi Min Mat Gar Peak Influence 373 | . 23 8 . 30 329 373 Initial 213 | . . 8 . . 7 213 Average 73 | . 12 6 . 13 110 322 Maximum Alert Level 1 | . . . . . 1 1 Low Security (%) 85 | 100 100 100 . 100 83 . Level 1 14 | . . . . . 16 100 Level 2 . | . . . . . . . Level 3 . | . . . . . . . Level 4 . | . . . . . . . Level 5 . | . . . . . . . High Security . | . . . . . . . Max Security . | . . . . . . . Squads Dispatched 1 | . . . . . 1 . Investigation . | . . . . . . . Extermination . | . . . . . . . Reinforcement 1 | . . . . . 1 . Assault . | . . . . . . . Garrison . | . . . . . . . Intercept . | . . . . . . . Searches Triggered . | . . . . . . . Construction Impeded . | . . . . . . . Haulers Reinforced . | . . . . . . . Active Scanning Responses . | . . . . . . . Cargo Convoy Interrupts . | . . . . . . . Stealth | -11 -10 -10 -10 -9 -8 -8 --------- Run | Scr Mat Min Exi Min Mat Gar Distress Signals 3 | . . . . . 3 . Communications Jammed . | . . . . . . . Distress Signals . | . . . . . . . Times Spotted 53 | . 1 4 . 7 27 14 Peak Tracking Total 17 | . 1 4 . 5 17 15 Tactical Retreats 4 | . . . . . 3 1 Traps | -11 -10 -10 -10 -9 -8 -8 ------- Run | Scr Mat Min Exi Min Mat Gar Traps Triggered 1 | . 1 . . . . . Indirectly . | . . . . . . . Trap Hack Attempts . | . . . . . . . Triggered . | . . . . . . . Disarmed . | . . . . . . . Reprogrammed . | . . . . . . . Reused . | . . . . . . . Traps Extracted . | . . . . . . . Installed . | . . . . . . . Triggered . | . . . . . . . Machines | -11 -10 -10 -10 -9 -8 -8 ---------- Run | Scr Mat Min Exi Min Mat Gar Machines Disabled . | . . . . . . . Max in Single Turn . | . . . . . . . Machines Sabotaged . | . . . . . . . Garrisons Compromised . | . . . . . . . Overloaded Fab Kills . | . . . . . . . Hacking | -11 -10 -10 -10 -9 -8 -8 --------- Run | Scr Mat Min Exi Min Mat Gar Machines Accessed 8 | . 1 . 2 . 5 . Terminals 5 | . 1 . . . 4 . Fabricators . | . . . . . . . Repair Stations . | . . . . . . . Recycling Units . | . . . . . . . Scanalyzers . | . . . . . . . Garrison Access 1 | . . . . . 1 . Total Hacks 17 | . 3 . 2 . 12 . Successful 9 | . 1 . 2 . 6 . Failed 8 | . 2 . . . 6 . Catastrophic 1 | . . . . . 1 . Database Lockouts . | . . . . . . . Manual 13 | . 3 . . . 10 . Terminals 14 | . 3 . . . 11 . Fabricators . | . . . . . . . Repair Stations . | . . . . . . . Recycling Units . | . . . . . . . Scanalyzers . | . . . . . . . Garrison Access 1 | . . . . . 1 . Terminal Hacks 6 | . 1 . 2 . 3 . Record 2 | . . . 2 . . . Level Access Points 1 | . . . . . 1 . Branch Access Points 2 | . 1 . . . 1 . Zone Layout 1 | . . . . . 1 . Fabricator Hacks . | . . . . . . . Repair Station Hacks . | . . . . . . . Recycling Unit Hacks . | . . . . . . . Scanalyzer . | . . . . . . . Garrison Access Hacks 1 | . . . . . 1 . Unlock Access 1 | . . . . . 1 . Unauthorized Hacks 2 | . . . . . 2 . Terminals 2 | . . . . . 2 . Botnet 2 | . . . . . 2 . Fabricators . | . . . . . . . Repair Stations . | . . . . . . . Recycling Units . | . . . . . . . Scanalyzers . | . . . . . . . Garrison Access . | . . . . . . . Data Cores Recovered . | . . . . . . . Used . | . . . . . . . Hacking Detections 4 | . 1 . . . 3 . Full Trace Events . | . . . . . . . Feedback Events . | . . . . . . . Feedback Blocked . | . . . . . . . Robot Schematics Acquired . | . . . . . . . Robots Built . | . . . . . . . Authchips . | . . . . . . . Time . | . . . . . . . Total Robot Build Rating . | . . . . . . . Part Schematics Acquired . | . . . . . . . Parts Built . | . . . . . . . Authchips . | . . . . . . . Time . | . . . . . . . Total Part Build Rating . | . . . . . . . Parts Repaired . | . . . . . . . Time . | . . . . . . . Parts Recycled . | . . . . . . . Recycled Matter . | . . . . . . . Retrieved Matter . | . . . . . . . Retrieved Components . | . . . . . . . Parts Scanalyzed . | . . . . . . . Part Schematics Acquired . | . . . . . . . Parts Damaged . | . . . . . . . Bothacking | -11 -10 -10 -10 -9 -8 -8 ------------ Run | Scr Mat Min Exi Min Mat Gar Used RIF Installer . | . . . . . . . Robots Hacked . | . . . . . . . Non-combat . | . . . . . . . Combat . | . . . . . . . Robot Hacks Applied . | . . . . . . . Relay Couplers Released . | . . . . . . . Fabnet Peak Effective % . | . . . . . . . Robots Rewired . | . . . . . . . Allies Hacked . | . . . . . . . Hacks Repelled . | . . . . . . . Allies | -11 -10 -10 -10 -9 -8 -8 -------- Run | Scr Mat Min Exi Min Mat Gar Total Allies . | . . . . . . . Largest Group . | . . . . . . . Highest-Rated Group . | . . . . . . . Highest-Rated Ally . | . . . . . . . Total Orders . | . . . . . . . Ally Attacks . | . . . . . . . Total Damage . | . . . . . . . Kills . | . . . . . . . Allies Corrupted . | . . . . . . . Allies Melted . | . . . . . . . Intel | -11 -10 -10 -10 -9 -8 -8 ------- Run | Scr Mat Min Exi Min Mat Gar Robot Analysis Total . | . . . . . . . Derelict Logs Recovered 1 | . . . . 1 . . Drone Launches . | . . . . . . . Drone Recoveries . | . . . . . . . Exploration | -11 -10 -10 -10 -9 -8 -8 ------------- Run | Scr Mat Min Exi Min Mat Gar Turns Passed 536 | 4 46 120 95 81 148 42 Spaces Moved 956 | 1 81 205 188 131 271 79 Core 956 | 1 81 205 188 131 271 79 Treads . | . . . . . . . Legs . | . . . . . . . Wheels . | . . . . . . . Hover . | . . . . . . . Flight . | . . . . . . . Fastest Speed 50 | 50 50 50 50 50 50 50 Average Speed 50 | 50 50 50 50 50 50 50 Slowest Speed 50 | 50 50 50 50 50 50 50 Overloaded Moves . | . . . . . . . Propulsion Burnouts . | . . . . . . . Robots Hopped . | . . . . . . . Cave-ins Triggered . | . . . . . . . Exploration Rate (%) 34 | 2 21 49 59 33 45 32 Regions Visited 6 Branch Regions 3 Pre-discovered Areas . | . . . . . . . Known Exits Taken 2 | . 1 . . . 1 . Unknown Exits Taken 4 | 1 . 1 1 1 . . Scrap Searched 2 | . . 1 . 1 . . Spaces Dug . | . . . . . . . Terrain Destroyed . | . . . . . . . Melee . | . . . . . . . Projectile . | . . . . . . . AOE . | . . . . . . . Terrain Rammed . | . . . . . . . Walls Destroyed . | . . . . . . . Machines Disabled . | . . . . . . . Actions | -11 -10 -10 -10 -9 -8 -8 --------- Run | Scr Mat Min Exi Min Mat Gar Total 1013 | 7 87 222 188 145 282 82 Wait 16 | . . . . 13 3 . Move 950 | . 80 204 187 130 271 78 Hop . | . . . . . . . Pick Up 6 | . 2 1 . 1 2 . Fast Attach 2 | . . . . 1 1 . Attach 4 | . . . 1 . 2 1 Detach 1 | 1 . . . . . . Swap 2 | . 2 . . . . . Drop 13 | 6 3 1 . . . 3 Fire . | . . . . . . . Melee . | . . . . . . . Ram 19 | . . 16 . . 3 . Kick . | . . . . . . . Crush . | . . . . . . . Escape Stasis . | . . . . . . . Rewire . | . . . . . . . Trap . | . . . . . . . Miscellaneous . | . . . . . . . Route ------- -11/Scrapyard -10/Materials (discovered 2 exits: *Min x2) -10/Mines -10/Exiles -9/Mines -8/Materials (discovered 5 exits: Fac x3 / Sto / Gar) -8/Garrison (discovered 1 exit: [*Mat]) History --------- Turn | Location | Event 5 | -11/Scrapyard | Discovered new exit (range 0) 5 | -11/Scrapyard | Entered Materials 11 | -10/Materials | Identified exit to Mines 51 | -10/Materials | Entered Mines 60 | -10/Mines | Found a hidden stash of uninstalled traps 169 | -10/Mines | Deemed a non-threat by the Exiles lab entrance 169 | -10/Mines | Discovered new exit (range 5) 171 | -10/Mines | Entered Exiles 171 | -10/Exiles | Found Exiles lab abandoned 260 | -10/Exiles | Discovered new exit (range 12) 266 | -10/Exiles | Entered Mines 267 | -9/Mines | Assembled infested the area 272 | -9/Mines | Assisted by a Guerilla fighting off Assembled 306 | -9/Mines | Build established: Mutant 344 | -9/Mines | Learned Materials terminal intel 344 | -9/Mines | Discovered new exit (range 8) 347 | -9/Mines | Entered Materials 347 | -8/Materials | Evolved 4 slots: Propulsion x2, Utility x2 348 | -8/Materials | Loaded intel: 12 terminal locations 351 | -8/Materials | Identified exit to Storage 424 | -8/Materials | Identified exit to Factory 495 | -8/Materials | Identified exit to Garrison 495 | -8/Materials | Entered Garrison 520 | -8/Garrison | Triggered checkpoint 521 | -8/Garrison | Core integrity fell below 50% 532 | -8/Garrison | Discovered new exit (range 11) 537 | -8/Garrison | Attempted to access garrison exit controls, blocked by remote lockdown 537 | -8/Garrison | Self-destructed Last Messages --------------- LOCATION=GARRISON GOAL=ESCAPE 00495_ Dropped Cmb. Airjet. 00496_ Identified Imp. VTOL Module. 00496_ Adv. Visual Processing Unit broken. 00496_ Malfunction: Power surge. 00497_ Dropped Faulty Imp. VTOL Module. 00500_ ALERT: Garrison interior compromised. 00520_ Beams of light sweep through the air. An alarm sounds. Garrison Door activated. 00520_ C-30 ARC bursts open, deploying its payload. 00520_ H-55 Commando unfolds itself. 00520_ Slug penetrates Wall. 00520_ C-30 ARC bursts open, deploying its payload. 00520_ G-50 Soldier unfolds itself. 00520_ G-47 Trooper unfolds itself. 00522_ Slug penetrates Wall. 00532_ EXIT=FOUND 00537_ Attempting to access garrison exit controls... 00537_ Remote lockdown engaged. Map ----- +----------------------------------------------------+ | | | | | | | | | | | ?????????????????????????????????????????????????? | | ?????????????????????????????????????????????????? | | ?????????????????????????????????????????????????? | | ?????????????????????????????????????????????????? | | ?????????????????????????????????????????????????? | | ?????????????????????????????????????????????????? | | ?????????????????????????????????????????????????? | | ?????????????????????????????????????????????????? | | ?????????????????????????????????????????????????? | | ?????????????????????????????????????????????????? | | ?????????????????????????????????????????????????? | | ?????????????????????????????????????????????????? | | ?????????????????????????????????????????????????? | | ?????????????????????????????????????????????????? | | ?????????????????????????????????????????????????? | | ?????????????????????????????????????????????????? | | ?????????????????????????????????????????????????? | | ?????????????????????????????????????????????????? | | ??????????????????????######?????????????????????? | | ??????????????????????# #?????????????????????? | | ??????????????????????# @ #?????????????????????? | | ??????????????????????# #?????????????????????? | | ??????????????????????# ###?????????????????????? | | ??????????????????????# #???????????????????????? | | ??????????????????????# #???????????????????????? | | ??????????????????????# #???????????????????????? | | ??????????????????????# #???????????????????????? | | ??????????????????????# #???????????????????????? | | ??????????????????????#s #???????????????????????? | | ??????????????????????#s #???????????????????????? | | ???????????############ ##??????????????????????? | | ???????????# #??????????????????????? | | ???????????# #??????????????????????? | | ???????????# ########### #??????????????????????? | | ???????????# #?????????? #??????????????????????? | | ???????????# #?????????? #??????????????????????? | | ???????????# #?????????? #??????????????????????? | | ???????????# #?????????? ??????????????????????? | | ???????????# #??????????##??????????????????????? | | ???????????# #??????????????????????????????????? | | ?????####??# #??????????????????????????????????? | | ?????#%" ?# #??????????????????????????????????? | | ######" ## ##?????????????????????????????????? | | #?????????????????????????????????? | | #?????????????????????????????????? | +----------------------------------------------------+ Best States ------------- Heat Dissipation 31 Energy Generation 5 Energy Capacity 100 Matter Stores 300 Matter Capacity 300 Sight Range 20 Terrain Scan Density 10 Evasion (%) 50 Item Schematics ----------------- None Robot Schematics ------------------ None Fabricated ------------ Nothing Alien Tech Used ----------------- None Achievements -------------- None Challenges ------------ None Game ------ Seed ParticleCargoDerivative Manual? 0 Play Time 00:12:11 Cumulative 357.2 hours Start 2022.08.01 @ 21:16:07 End 2022.08.01 @ 21:27:25 Sessions 1 Manual Loads 0 Difficulty Rogue Special Mode None Game No. 161 Rogue 161 Adventurer 0 Explorer 0 Win Type - Total 7 Types 3/1/0/1/2/0/0/0/0 Lore% 66 Gallery% 80 Achievement% 70 Wizard Run 0 Options --------- ASCII 0 Keyboard 0 Movement Mouse Keybinds 0 Fullscreen 0 Font 28/SmallcapsGlow Map View 72x54 Tactical HUD 1 Map Filters NONE Filters NONE Steam 1 RUN: 2440d420-a1aa-41d5-8752-6ad72fdb5e5a